bitfinex-derivatives/quotes_SOLF0:USTF0_20250624
["timestamp","ask_amount","ask_price","bid_price","bid_amount"]
[1750778065291,45.80857697,144.91,144.84,38.54]
[1750778065593,38.54,144.91,144.89,6.8979]
[1750778065790,7.26857697,144.93,144.84,54.3203013]
[1750778065986,38.54,144.92,144.84,54.3203013]
[1750778066192,7.26857697,144.91,144.86,6.8992]
[1750778066701,6.8987,144.89,144.85,6.8999]
[1750778066899,7.26857697,144.91,144.85,6.8999]
[1750778067298,7.26857697,144.91,144.85,6.8998]
[1750778067701,6.8987,144.88,144.82,10.80732433]
[1750778067897,6.8987,144.88,144.82,8.51172433]
[1750778068102,6.8994,144.87,144.81,49.46152433]
[1750778068303,4.36517685,144.85,144.8,8.51172433]
[1750778068599,45.4408,144.84,144.78,10.76902433]
[1750778069006,38.54,144.84,144.83,6.901]
[1750778070502,45.81502181,144.88,144.8,7.27502181]
[1750778070808,38.54,144.88,144.8,15.78674614]
[1750778071603,6.8994,144.87,144.84,6.9003]
[1750778071911,38.54,144.88,144.81,8.51172433]
[1750778072109,45.4389,144.88,144.81,8.51172433]
[1750778072305,45.4389,144.88,144.82,2.2053]
[1750778073010,45.4389,144.88,144.85,6.8999]
[1750778073902,6.8992,144.87,144.84,6.9003]
[1750778075112,45.81475702,144.88,144.82,8.51172433]
[1750778075318,45.81475702,144.88,144.79,10.84762433]
[1750778076010,7.27475702,144.86,144.79,8.51172433]
[1750778076212,7.27475702,144.86,144.78,10.76902433]
[1750778076603,6.9008,144.84,144.78,10.76902433]
[1750778076809,45.1808,144.84,144.78,10.76902433]
[1750778077012,45.1808,144.84,144.81,6.9018]
[1750778077816,38.28,144.84,144.78,2.2573]
[1750778078013,38.28,144.84,144.77,49.08282433]
[1750778078218,6.9029,144.8,144.76,15.41582433]
[1750778078408,7.27677389,144.82,144.75,8.51172433]
[1750778078714,6.9038,144.78,144.75,6.9048]
[1750778078918,38.28,144.79,144.73,8.51172433]
[1750778079313,45.1832,144.79,144.76,6.9041]
[1750778079816,6.9034,144.78,144.74,6.9049]
[1750778080116,6.9034,144.78,144.73,8.51172433]
[1750778080317,38.28,144.79,144.73,8.51172433]
[1750778080517,6.9036,144.78,144.73,8.51172433]
[1750778080817,38.28,144.79,144.73,8.51172433]
[1750778081211,38.28,144.79,144.72,2.29]
[1750778081412,38.28,144.79,144.72,10.80172433]
[1750778081710,6.9043,144.77,144.73,6.9057]
[1750778081917,38.28,144.79,144.72,10.80172433]
[1750778082119,6.9042,144.77,144.73,6.9054]
[1750778082814,38.28,144.79,144.72,2.29]
[1750778083119,38.28,144.79,144.72,10.80172433]
[1750778083315,38.28,144.79,144.76,6.9041]
[1750778083517,38.28,144.79,144.73,8.51172433]
[1750778084517,38.28,144.79,144.75,6.9046]
[1750778085516,45.183,144.79,144.75,6.9046]
[1750778085718,38.28,144.79,144.73,8.51172433]
[1750778085914,6.9037,144.78,144.73,8.51172433]
[1750778086412,38.28,144.79,144.73,8.51172433]
[1750778087014,38.28,144.79,144.72,10.80172433]
[1750778087718,6.9036,144.78,144.72,10.80172433]
[1750778088214,38.28,144.79,144.72,10.80172433]
[1750778088420,45.1832,144.79,144.75,6.9048]
[1750778089223,6.9035,144.78,144.74,6.9051]
[1750778090021,38.28,144.79,144.72,10.80172433]
[1750778090022,45.1831,144.79,144.72,10.80172433]
[1750778090217,38.28,144.79,144.73,8.51172433]
[1750778090615,38.28,144.79,144.76,6.9043]
[1750778091016,38.28,144.79,144.77,6.9037]
[1750778091416,38.28,144.79,144.74,8.51172433]
[1750778092224,38.28,144.79,144.76,6.9044]
[1750778092620,38.28,144.79,144.74,8.51172433]
[1750778092828,45.1832,144.79,144.75,6.9045]
[1750778093627,6.9035,144.78,144.75,6.9045]
[1750778094020,38.28,144.79,144.75,6.9045]
[1750778094021,45.1832,144.79,144.75,6.9045]
[1750778095625,4.37008058,144.78,144.72,10.80172433]
[1750778096324,4.37008058,144.78,144.74,6.9049]
[1750778097130,11.27368058,144.78,144.75,6.9047]
[1750778098132,11.27368058,144.78,144.74,6.9049]
[1750778098831,11.27368058,144.78,144.75,6.9046]
[1750778100527,38.28,144.79,144.72,15.17180491]
[1750778100828,38.28,144.79,144.74,8.51172433]
[1750778101032,6.9007,144.84,144.8,6.9021]
[1750778101332,42.67008058,144.83,144.76,8.51172433]
[1750778101525,6.902,144.81,144.77,6.9035]
[1750778101726,38.3,144.82,144.74,8.51172433]
[1750778101935,38.3,144.82,144.76,4.37008058]
[1750778102525,38.3,144.85,144.84,6.9004]
[1750778102830,5.94258058,144.9,144.82,4.37008058]
[1750778103026,6.8985,144.88,144.84,6.9001]
[1750778103731,38.3,144.89,144.82,4.37008058]
[1750778104322,6.8993,144.87,144.83,6.9008]
[1750778105028,38.3,144.89,144.82,11.27118058]
[1750778105428,38.3,144.89,144.81,40.6912]
[1750778105628,4.37008058,144.88,144.81,2.3912]
[1750778106136,4.37008058,144.88,144.81,10.90292433]
[1750778106336,6.8997,144.86,144.83,6.9008]
[1750778106836,6.9,144.85,144.82,6.9011]
[1750778107133,38.26,144.85,144.79,8.51172433]
[1750778107337,38.26,144.85,144.78,46.77172433]
[1750778107530,38.26,144.85,144.79,8.51172433]
[1750778107930,6.9007,144.84,144.79,8.51172433]
[1750778108638,6.9007,144.84,144.8,6.902]
[1750778109139,6.9007,144.84,144.79,8.51172433]
[1750778109330,6.9007,144.84,144.81,6.9017]
[1750778111738,38.26,144.85,144.77,8.51172433]
[1750778111739,4.36572918,144.82,144.77,8.51172433]
[1750778111936,38.26,144.81,144.75,8.51172433]
[1750778112138,45.162,144.81,144.78,6.903]
[1750778113941,38.26,144.81,144.79,6.9026]
[1750778114139,38.26,144.81,144.77,8.51172433]
[1750778115049,38.26,144.81,144.78,8.51172433]
[1750778115239,45.162,144.81,144.78,15.41462433]
[1750778115438,45.162,144.81,144.78,6.9029]
[1750778115744,45.162,144.81,144.76,4.36572918]
[1750778115745,38.26,144.81,144.76,8.51172433]
[1750778117144,6.9025,144.8,144.77,6.9035]
[1750778117443,38.26,144.81,144.76,8.51172433]
[1750778117839,38.26,144.81,144.75,8.51172433]
[1750778118137,38.26,144.81,144.76,6.904]
[1750778118943,6.9031,144.79,144.76,6.904]
[1750778119349,6.9033,144.78,144.76,6.904]
[1750778119642,4.36572918,144.8,144.75,15.41622433]
[1750778119844,4.36572918,144.8,144.75,8.51172433]
[1750778120245,4.36572918,144.8,144.75,15.41632433]
[1750778120644,38.26,144.81,144.75,15.41632433]
[1750778120846,4.36572918,144.79,144.75,15.41632433]
[1750778121145,6.9033,144.78,144.75,15.41632433]
[1750778121449,4.36572918,144.79,144.76,6.9042]
[1750778121645,6.9035,144.78,144.75,8.51172433]
[1750778121839,42.62572918,144.81,144.75,8.51172433]
[1750778122143,6.9027,144.8,144.76,6.9039]
[1750778122344,42.62572918,144.81,144.76,6.9039]
[1750778122950,6.9032,144.79,144.76,6.9039]
[1750778123142,42.62572918,144.81,144.76,6.9039]
[1750778124049,6.9035,144.78,144.75,8.51172433]
[1750778124649,6.9035,144.78,144.75,15.41622433]
[1750778124847,6.9037,144.77,144.75,15.41622433]
[1750778125550,6.9037,144.77,144.75,8.51172433]
[1750778126847,6.9035,144.78,144.75,15.41612433]
[1750778127046,38.26,144.81,144.76,8.51172433]
[1750778127850,6.9036,144.78,144.76,8.51172433]
[1750778128051,38.26,144.81,144.76,8.51172433]
[1750778128252,4.36572918,144.8,144.75,8.51172433]
[1750778128451,6.9047,144.75,144.73,8.51172433]
[1750778128653,4.36572918,144.78,144.73,8.51172433]
[1750778129152,6.9049,144.75,144.73,8.51172433]
[1750778129753,6.9044,144.76,144.73,8.51172433]
[1750778130046,4.36572918,144.79,144.73,8.51172433]
[1750778130247,6.9045,144.76,144.73,15.41712433]
[1750778131148,6.9045,144.76,144.74,6.905]
[1750778131346,45.1639,144.77,144.74,6.905]
[1750778131546,38.26,144.77,144.74,8.51172433]
[1750778131752,38.26,144.77,144.74,15.41652433]
[1750778131955,45.1641,144.77,144.74,15.41652433]
[1750778132148,38.26,144.77,144.74,15.41652433]
[1750778132953,38.26,144.77,144.73,8.51172433]
[1750778133154,6.9043,144.76,144.73,8.51172433]
[1750778133355,38.26,144.77,144.73,6.9054]
[1750778133557,42.62572918,144.77,144.73,8.51172433]
[1750778133750,42.62572918,144.77,144.71,8.51172433]
[1750778133751,4.36572918,144.75,144.71,8.51172433]
[1750778133946,38.26,144.77,144.7,10.78102433]
[1750778134153,38.26,144.77,144.72,8.51172433]
[1750778134353,38.26,144.77,144.73,6.9053]
[1750778134551,4.36572918,144.76,144.71,8.51172433]
[1750778134746,38.26,144.77,144.7,8.51172433]
[1750778134953,4.36572918,144.76,144.7,8.51172433]
[1750778135153,4.36572918,144.76,144.71,6.9064]
[1750778135354,4.36572918,144.76,144.7,8.51172433]
[1750778135853,4.36572918,144.76,144.71,6.9065]
[1750778136253,4.36572918,144.76,144.7,8.51172433]
[1750778136657,6.9055,144.74,144.71,6.9061]
[1750778136957,4.36572918,144.76,144.71,8.51172433]
[1750778137158,38.26,144.77,144.71,8.51172433]
[1750778137359,38.26,144.77,144.72,8.51172433]
[1750778137559,38.26,144.77,144.76,6.9042]
[1750778137755,42.58572918,144.8,144.73,8.51172433]
[1750778137958,38.22,144.8,144.74,8.51172433]
[1750778138255,38.22,144.8,144.74,12.87745351]
[1750778138464,38.22,144.8,144.75,8.51172433]
[1750778138761,38.22,144.8,144.79,6.9028]
[1750778139153,38.22,144.8,144.78,6.903]
[1750778140159,38.22,144.8,144.75,8.51172433]
[1750778140369,42.58572918,144.8,144.75,8.51172433]
[1750778140760,6.9031,144.79,144.76,6.9039]
[1750778141366,42.58572918,144.8,144.76,6.9039]
[1750778141367,6.9032,144.78,144.76,6.9039]
[1750778141766,42.58572918,144.8,144.76,6.9039]
[1750778141966,6.903,144.79,144.76,6.9039]
[1750778143265,42.58572918,144.8,144.75,8.51172433]
[1750778143465,4.36572918,144.78,144.74,8.51172433]
[1750778143768,49.48842918,144.8,144.77,6.9037]
[1750778144167,4.36572918,144.78,144.74,8.51172433]
[1750778144369,4.36572918,144.76,144.71,10.84952433]
[1750778144763,4.36572918,144.76,144.72,6.9058]
[1750778144764,42.56572918,144.76,144.72,6.9058]
[1750778144964,4.36572918,144.74,144.71,8.51172433]
[1750778145169,4.36572918,144.74,144.7,8.51172433]
[1750778145573,4.36572918,144.74,144.71,6.9063]
[1750778146368,4.36572918,144.74,144.7,6.9068]
[1750778146869,4.36572918,144.74,144.69,8.51172433]
[1750778146870,4.36572918,144.72,144.69,6.9073]
[1750778147471,42.58572918,144.72,144.68,8.51172433]
[1750778147678,4.36572918,144.7,144.67,8.51172433]
[1750778147875,6.908,144.69,144.66,8.51172433]
[1750778148068,4.36572918,144.7,144.66,6.9087]
[1750778148467,6.9079,144.69,144.67,6.9084]
[1750778148672,6.9079,144.69,144.65,12.91932433]
[1750778149071,4.36572918,144.7,144.65,12.91932433]
[1750778149275,38.22,144.72,144.65,12.91932433]
[1750778149471,11.27262918,144.71,144.65,12.91932433]
[1750778149776,4.36572918,144.71,144.65,12.91932433]
[1750778150078,4.36572918,144.69,144.65,12.91932433]
[1750778150269,4.36572918,144.69,144.65,4.4076]
[1750778150471,11.27352918,144.69,144.65,4.4076]
[1750778150674,4.36572918,144.69,144.66,6.9089]
[1750778151079,4.36572918,144.71,144.65,2.2205]
[1750778151278,4.36572918,144.71,144.65,10.73222433]
[1750778151874,6.9071,144.7,144.65,10.73222433]
[1750778152074,4.36572918,144.71,144.65,10.73222433]
[1750778152579,4.36572918,144.71,144.66,8.51172433]
[1750778152766,4.36572918,144.71,144.65,10.73222433]
[1750778153173,4.36572918,144.69,144.65,2.2205]
[1750778154081,6.9083,144.68,144.65,9.1295]
[1750778154279,4.36572918,144.69,144.63,10.72892433]
[1750778154479,38.22,144.68,144.63,2.2172]
[1750778154778,38.22,144.68,144.62,10.71422433]
[1750778155280,38.22,144.68,144.64,6.9098]
[1750778155481,38.22,144.68,144.62,10.71422433]
[1750778155681,45.1285,144.68,144.65,6.9093]
[1750778156480,45.1285,144.68,144.62,10.71422433]
[1750778156481,38.22,144.68,144.62,10.71422433]
[1750778156683,4.36572918,144.67,144.62,2.2025]
[1750778157078,6.9092,144.66,144.63,6.9101]
[1750778157284,4.36572918,144.67,144.63,6.9101]
[1750778157483,6.9092,144.66,144.62,2.2025]
[1750778157882,4.36572918,144.67,144.62,2.2025]
[1750778158081,6.9092,144.66,144.63,6.9101]
[1750778158379,4.36572918,144.67,144.62,2.2025]
[1750778158885,38.22,144.68,144.64,6.41470331]
[1750778159084,38.22,144.68,144.65,6.41470331]
[1750778159586,38.22,144.68,144.66,6.909]
[1750778159787,38.22,144.68,144.66,6.41470331]
[1750778160175,38.22,144.68,144.66,13.32360331]
[1750778160889,38.22,144.68,144.65,13.32390331]
[1750778161488,45.1283,144.68,144.65,13.32390331]
[1750778161985,38.22,144.68,144.66,6.9089]
[1750778162185,4.36572918,144.7,144.66,6.41470331]
[1750778163789,11.27312918,144.7,144.67,6.9083]
[1750778163990,4.36572918,144.7,144.66,6.41470331]
[1750778164191,4.36572918,144.7,144.65,6.41470331]
[1750778164685,6.9078,144.69,144.66,6.9087]
[1750778165388,6.9082,144.68,144.65,6.9092]
[1750778165791,4.36572918,144.7,144.64,6.41470331]
[1750778165986,38.22,144.71,144.64,6.41470331]
[1750778165987,6.9086,144.67,144.64,13.32450331]
[1750778166291,38.22,144.71,144.64,6.41470331]
[1750778166480,6.9089,144.67,144.64,13.32430331]
[1750778167082,4.36572918,144.68,144.64,13.32430331]
[1750778167488,38.14,144.67,144.64,13.32430331]
[1750778167692,38.14,144.67,144.64,6.9096]
[1750778168089,38.14,144.67,144.65,6.9094]
[1750778169004,45.0488,144.67,144.65,6.9094]
[1750778169306,38.14,144.67,144.64,13.32440331]
[1750778169789,38.14,144.67,144.64,6.41470331]
[1750778169987,38.14,144.67,144.62,6.41470331]
[1750778169988,4.36572918,144.66,144.62,6.41470331]
[1750778170191,4.36572918,144.66,144.61,6.41470331]
[1750778170593,4.36572918,144.66,144.62,6.41470331]
[1750778170993,38.14,144.67,144.62,6.41470331]
[1750778171500,38.14,144.67,144.63,6.41470331]
[1750778172000,6.9092,144.66,144.63,13.32490331]
[1750778174101,45.0487,144.67,144.64,6.9099]
[1750778174302,38.14,144.67,144.63,6.41470331]
[1750778174602,38.14,144.67,144.64,6.9097]
[1750778175205,6.909,144.66,144.63,13.32490331]
[1750778175905,6.909,144.66,144.63,6.41470331]
[1750778176205,45.0487,144.67,144.64,6.41470331]
[1750778176404,42.52572918,144.7,144.64,6.41470331]
[1750778176707,38.16,144.7,144.66,6.41470331]
[1750778177005,38.16,144.73,144.69,6.9072]
[1750778177203,38.16,144.73,144.68,6.41470331]
[1750778177409,125.69904594,144.74,144.7,6.9068]
[1750778177700,132.60444594,144.74,144.69,6.41470331]
[1750778177905,125.69904594,144.74,144.69,6.41470331]
[1750778178101,125.69904594,144.74,144.7,6.41470331]
[1750778178304,6.9063,144.72,144.7,6.41470331]
[1750778179102,6.9066,144.71,144.7,6.41470331]
[1750778179309,6.9066,144.71,144.69,6.41470331]
[1750778180008,130.06477512,144.74,144.69,6.41470331]
[1750778180309,130.06477512,144.74,144.7,6.41470331]
[1750778180608,136.97017512,144.74,144.71,6.9065]
[1750778180808,130.06477512,144.74,144.7,6.41470331]
[1750778182009,6.9056,144.73,144.7,6.41470331]
[1750778182207,130.06477512,144.74,144.7,6.41470331]
[1750778183011,6.9059,144.73,144.7,13.32160331]
[1750778183211,130.06477512,144.74,144.7,6.41470331]
[1750778183411,596.5,144.75,144.7,6.41470331]
[1750778183805,38.16,144.76,144.72,6.41470331]
[1750778184005,45.0645,144.76,144.73,6.9054]
[1750778184507,6.9047,144.75,144.72,6.9059]
[1750778185614,6.9047,144.75,144.73,6.9055]
[1750778185804,45.0644,144.76,144.73,6.9055]
[1750778186005,38.16,144.76,144.71,12.87745351]
[1750778186906,45.0643,144.76,144.73,6.9052]
[1750778187506,6.9047,144.75,144.73,6.9052]
[1750778187712,6.9047,144.75,144.72,15.41762433]
[1750778188115,6.9047,144.75,144.7,12.76672164]
[1750778188116,4.36572918,144.75,144.7,8.51172433]
[1750778188408,4.36572918,144.75,144.69,10.79842433]
[1750778188613,6.9063,144.72,144.7,8.51172433]
[1750778188907,38.16,144.76,144.69,15.41902433]
[1750778188908,4.36572918,144.73,144.69,15.41902433]
[1750778189116,6.9071,144.7,144.68,8.51172433]
[1750778189610,38.14,144.72,144.68,8.51172433]
[1750778189808,6.9068,144.71,144.68,15.41922433]
[1750778190209,38.14,144.72,144.68,15.41922433]
[1750778190412,6.9073,144.7,144.68,15.41922433]
[1750778190609,38.14,144.72,144.68,6.9075]
[1750778191615,6.9067,144.71,144.68,6.9075]
[1750778192411,6.9067,144.71,144.69,6.9075]
[1750778192612,45.0462,144.72,144.69,6.9075]
[1750778192812,38.14,144.72,144.69,6.9075]
[1750778194020,6.9068,144.71,144.69,6.9075]
[1750778194422,6.9068,144.71,144.68,8.57965964]
[1750778194423,38.14,144.72,144.68,8.57965964]
[1750778194916,38.14,144.72,144.7,6.9068]
[1750778196319,45.0462,144.72,144.69,15.48695964]
[1750778196620,45.0462,144.72,144.69,8.57965964]
[1750778197317,45.0462,144.72,144.7,6.9068]
[1750778198520,38.14,144.72,144.71,6.9066]
[1750778198715,4.36572918,144.74,144.69,8.57965964]
[1750778199025,6.9055,144.74,144.71,6.9063]
[1750778199221,42.40572918,144.75,144.69,8.57965964]
[1750778199421,4.36572918,144.73,144.69,8.57965964]
[1750778199622,6.9064,144.72,144.69,15.48675964]
[1750778200322,6.9064,144.72,144.7,6.907]
[1750778200523,11.27152918,144.73,144.7,6.907]
[1750778200820,38.04,144.75,144.7,8.57965964]
[1750778200821,42.40572918,144.75,144.7,8.57965964]
[1750778201124,6.904,144.77,144.71,8.57965964]
[1750778201319,42.40572918,144.78,144.71,8.57965964]
[1750778201717,42.40572918,144.78,144.7,12.86948946]
[1750778201718,6.9042,144.76,144.73,6.9052]
[1750778201922,42.40572918,144.78,144.73,6.9052]
[1750778202117,4.36572918,144.76,144.72,8.57965964]
[1750778202423,6.9048,144.75,144.72,15.48555964]
[1750778202722,4.36572918,144.76,144.72,6.9059]
[1750778202923,4.36572918,144.76,144.71,8.57965964]
[1750778203123,4.36572918,144.76,144.72,6.9059]
[1750778203124,6.905,144.75,144.72,6.9059]
[1750778203325,4.36572918,144.76,144.72,6.9059]
[1750778203722,6.9048,144.75,144.72,6.9059]
[1750778203924,4.36572918,144.76,144.71,15.48615964]
[1750778204119,4.36572918,144.74,144.71,8.57965964]
[1750778204422,4.36572918,144.74,144.71,15.48585964]
[1750778204723,4.36572918,144.74,144.71,8.57965964]
[1750778205325,4.36572918,144.76,144.71,8.57965964]
[1750778206028,6.9052,144.74,144.72,6.9058]
[1750778206520,4.36572918,144.76,144.71,8.57965964]
[1750778206727,6.9058,144.73,144.71,8.57965964]
[1750778207130,42.40572918,144.74,144.7,8.57965964]
[1750778207427,6.9057,144.73,144.7,8.57965964]
[1750778207732,6.9057,144.73,144.71,6.9063]
[1750778209629,49.31102918,144.74,144.72,6.9061]
[1750778209829,42.40572918,144.74,144.71,8.57965964]
[1750778210024,42.40572918,144.74,144.7,8.57965964]
[1750778210431,6.9056,144.73,144.71,6.9062]
[1750778211625,38.04,144.74,144.71,8.57965964]
[1750778212130,38.04,144.74,144.72,6.9061]
[1750778212331,38.04,144.74,144.72,15.48575964]
[1750778212727,38.04,144.74,144.73,6.9056]
[1750778213830,11.27012918,144.76,144.74,6.905]
[1750778214026,11.27012918,144.76,144.72,8.57965964]
[1750778214827,11.27012918,144.76,144.73,15.48505964]
[1750778215029,6.9047,144.75,144.73,6.9054]
[1750778215232,4.36572918,144.76,144.73,6.9054]
[1750778215627,11.27022918,144.76,144.73,15.48505964]
[1750778215829,4.36572918,144.76,144.72,8.57965964]
[1750778216030,4.36572918,144.76,144.71,8.57965964]
[1750778216226,6.9052,144.74,144.71,8.57965964]
[1750778216426,4.36572918,144.76,144.71,8.57965964]
[1750778216728,6.9059,144.73,144.71,8.57965964]
[1750778217327,11.27112918,144.74,144.71,8.57965964]
[1750778217529,11.27112918,144.74,144.71,15.48615964]
[1750778218332,6.9057,144.73,144.71,15.48615964]
[1750778219131,4.36572918,144.75,144.72,6.9061]
[1750778219429,4.36572918,144.75,144.71,8.57965964]
[1750778219628,4.36572918,144.75,144.73,6.9053]
[1750778220931,4.36572918,144.75,144.72,8.57965964]
[1750778221431,6.9056,144.74,144.72,8.57965964]
[1750778221734,4.36572918,144.75,144.72,8.57965964]
[1750778222526,11.27072918,144.75,144.73,15.48495964]
[1750778222733,11.27072918,144.75,144.73,8.57965964]
[1750778222930,4.36572918,144.75,144.73,8.57965964]
[1750778223130,6.9051,144.74,144.73,8.57965964]
[1750778224936,4.37180487,144.75,144.71,8.57965964]
[1750778225124,4.37180487,144.72,144.7,8.57965964]
[1750778225328,42.41180487,144.72,144.7,8.57965964]
[1750778225530,6.9066,144.71,144.7,8.57965964]
[1750778227031,42.41180487,144.72,144.68,8.57965964]
[1750778227234,4.37534327,144.69,144.68,8.57965964]
[1750778227535,6.9073,144.7,144.68,8.57965964]
[1750778227836,4.37534327,144.71,144.68,8.57965964]
[1750778228034,6.9075,144.69,144.68,8.57965964]
[1750778228238,4.37534327,144.71,144.68,8.57965964]
[1750778229130,6.9071,144.7,144.68,8.57965964]
[1750778229630,4.37534327,144.71,144.68,8.57965964]
[1750778230334,4.37534327,144.71,144.67,6.9082]
[1750778230834,6.9073,144.7,144.67,6.9082]
[1750778231039,6.9073,144.7,144.65,2.2983]
[1750778231228,4.37534327,144.71,144.65,2.2983]
[1750778231434,6.908,144.69,144.66,6.9088]
[1750778232140,6.908,144.69,144.68,8.60269556]
[1750778234041,6.9072,144.7,144.68,8.60269556]
[1750778234442,4.37534327,144.71,144.68,8.60269556]
[1750778234943,6.9071,144.7,144.68,8.60269556]
[1750778235143,4.37534327,144.71,144.68,8.60269556]
[1750778235343,6.9075,144.7,144.68,8.60269556]
[1750778235533,4.37534327,144.71,144.67,15.51089556]
[1750778236238,4.37534327,144.71,144.69,6.44870543]
[1750778236942,38.04,144.72,144.7,6.44870543]
[1750778237146,4.37534327,144.73,144.7,6.44870543]
[1750778237147,37.92,144.75,144.7,8.60269556]
[1750778237348,6.9056,144.73,144.72,6.44679298]
[1750778237546,11.28094327,144.73,144.72,6.44679298]
[1750778237746,4.37534327,144.73,144.7,6.44679298]
[1750778237954,11.28194327,144.71,144.7,6.44679298]
[1750778238153,49.20194327,144.71,144.7,6.44679298]
[1750778238646,11.28194327,144.71,144.7,6.44679298]
[1750778238846,46.53921573,144.79,144.69,4.37189791]
[1750778239053,47.28791252,144.79,144.75,6.44568295]
[1750778239357,6.9042,144.76,144.75,6.44568295]
[1750778240854,6.9047,144.75,144.74,6.44568295]
[1750778241165,42.29189791,144.75,144.71,8.59424394]
[1750778241456,6.9065,144.72,144.7,8.59424394]
[1750778241847,6.9066,144.71,144.7,8.59424394]
[1750778242050,6.9066,144.71,144.69,15.50164394]
[1750778242354,6.9063,144.72,144.69,15.50164394]
[1750778242657,6.9063,144.72,144.69,8.59424394]
[1750778242849,6.9066,144.71,144.69,8.59424394]
[1750778243248,42.29189791,144.75,144.69,15.50154394]
[1750778243652,42.29189791,144.75,144.69,8.59424394]
[1750778244453,6.9071,144.7,144.68,10.79574394]
[1750778245561,6.9071,144.7,144.69,8.59424394]
[1750778246655,4.37189791,144.74,144.69,15.50174394]
[1750778246656,6.9068,144.71,144.69,15.50174394]
[1750778247765,6.9068,144.71,144.69,8.59424394]
[1750778248462,6.9071,144.7,144.69,8.59424394]
[1750778248758,6.9071,144.7,144.68,10.79574394]
[1750778248962,6.9071,144.7,144.68,8.59424394]
[1750778249363,6.9075,144.69,144.68,8.59424394]
[1750778249656,37.92,144.71,144.67,8.59424394]
[1750778249859,6.909,144.66,144.65,2.2983]
[1750778250157,4.37189791,144.68,144.63,2.3725]
[1750778250351,37.92,144.67,144.63,2.3725]
[1750778251358,44.8288,144.67,144.64,6.9095]
[1750778251553,44.8288,144.67,144.63,2.3725]
[1750778251755,37.92,144.67,144.66,6.909]
[1750778251957,37.92,144.67,144.65,8.59824466]
[1750778252353,37.92,144.67,144.66,6.909]
[1750778253459,37.92,144.67,144.65,15.50744466]
[1750778254951,37.92,144.67,144.66,6.909]
[1750778256666,37.92,144.67,144.65,8.59824466]
[1750778257259,37.92,144.67,144.65,15.50744466]
[1750778257958,44.8287,144.67,144.65,15.50744466]
[1750778258766,6.909,144.66,144.65,8.59824466]
[1750778258968,6.909,144.66,144.64,8.59824466]
[1750778259865,6.9094,144.65,144.64,8.59824466]
[1750778260062,4.37189791,144.66,144.63,8.59824466]
[1750778260374,6.9093,144.66,144.63,8.59824466]
[1750778260668,42.29189791,144.67,144.63,8.59824466]
[1750778260868,42.29189791,144.67,144.63,6.9102]
[1750778261260,6.9098,144.65,144.63,6.9102]
[1750778262278,6.9099,144.64,144.62,15.50894466]
[1750778263270,6.9104,144.63,144.62,8.59824466]
[1750778263466,42.29189791,144.67,144.62,8.59824466]
[1750778263867,4.37189791,144.65,144.6,10.97394466]
[1750778264165,4.37189791,144.61,144.58,8.59824466]
[1750778264476,4.37189791,144.61,144.57,15.51144466]
[1750778264477,6.9123,144.59,144.57,15.51144466]
[1750778264674,42.17189791,144.61,144.57,8.59824466]
[1750778264872,6.9123,144.59,144.57,15.51144466]
[1750778265070,42.17189791,144.61,144.57,6.9132]
[1750778265269,37.8,144.61,144.57,8.59824466]
[1750778265469,37.8,144.61,144.56,8.59824466]
[1750778265674,6.9121,144.6,144.57,6.9131]
[1750778266375,6.9126,144.59,144.56,15.51184466]
[1750778267070,6.912,144.6,144.56,8.59824466]
[1750778267568,6.912,144.6,144.58,6.9126]
[1750778268278,4.37949768,144.63,144.57,8.59824466]
[1750778268671,6.9112,144.62,144.59,6.9121]
[1750778269479,6.9114,144.61,144.58,6.9125]
[1750778269780,4.37949768,144.63,144.58,6.9125]
[1750778269976,6.9119,144.6,144.58,6.9125]
[1750778271884,4.37949768,144.59,144.55,8.59824466]
[1750778272075,4.37949768,144.59,144.54,13.22904466]
[1750778272275,4.37949768,144.59,144.55,6.9139]
[1750778272583,4.37949768,144.59,144.54,4.6308]
[1750778272780,4.37949768,144.59,144.55,6.9138]
[1750778273082,6.9135,144.57,144.54,4.6308]
[1750778273275,4.37949768,144.59,144.54,4.6308]